Cogmind - Beta 17 @@@ ROGUE MODE // 2026.07.08 @ 18:35:49 Player: Venar246 Result: Self-destructed Performance ------------- Evolutions (3) 1500 Regions Visited (7) 1400 Robots Destroyed (85) 425 Value Destroyed (2929) 2929 Prototype IDs (2) 40 Alien Tech Used (0) 0 Bonus (936) 936 TOTAL SCORE: 7230 Bonus ------- High Alert Combat Kills 413 Follower Combat Kills 323 Entered Garrisons 200 Cogmind --------- Core Integrity 514/700 Matter 9/300 Energy 160/160 System Corruption 13% Temperature Cool (0) Movement Walking (190) Ox1 Location -7/Factory Parts ------- > --- POWER (1) -------- Light Nuclear Core > --- PROPULSION (5) --- Improved Carbon-fiber Leg > --- UTILITY (5) ------ Advanced Targeting Computer Hardened Medium Armor Plating Improved Light Armor Plating Hacking Suite > --- WEAPON (2) ------- Advanced Assault Cannon Spear > --- INVENTORY (5) ---- Improved Hardlight Generator Hacking Suite Heavy Plasma Cannon Flak Cannon Mini Grenade Launcher Peak State ------------ > --- POWER ------------ Light Nuclear Core > --- PROPULSION ------- Armored Treads Aluminum Leg Carbon-fiber Leg Improved Carbon-fiber Leg Armored Leg > --- UTILITY ---------- Large Storage Unit Advanced Targeting Computer Hardened Medium Armor Plating Hardened Medium Armor Plating Hacking Suite > --- WEAPON ----------- Advanced Assault Cannon Advanced Assault Cannon > --- INVENTORY -------- Light Ion Engine Aluminum Leg Large Matter Pod Hardened Medium Armor Plating Hardened Medium Armor Plating Improved Light Armor Plating Improved Hardlight Generator Hacking Suite System Shield Heavy Plasma Cannon Flak Cannon Gauss Cannon Magnetic Acceleration Cannon Mini Grenade Launcher Spear [Rating: 44] Favorites ----------- Power Light Nuclear Core Engine Light Angular Momentum Engine Power Core Light Nuclear Core Propulsion Aluminum Leg Treads Armored Treads Leg Aluminum Leg Utility Large Storage Unit Device Advanced Heat Sink Storage Large Storage Unit Processor Advanced Targeting Computer Hackware Hacking Suite Protection Hardened Medium Armor Plating Weapon Advanced Assault Cannon Energy Gun Improved Medium Laser Energy Cannon Beam Cannon Ballistic Gun Assault Rifle Ballistic Cannon Advanced Assault Cannon Launcher Rocket Launcher Piercing Weapon Spear Build | -11 -10 -10 -9 -9 -8 -8 -7 ------- Run | Yrd Mat Min Mat Min Mat Gar Fac Slots Evolved 6 | . . . 2 . 2 . 2 Power . | . . . . . . . . Propulsion 3 | . . . 1 . 1 . 1 Utility 3 | . . . 1 . 1 . 1 Weapon . | . . . . . . . . Parts Attached 57 | 6 6 . 6 . 17 14 8 Power 7 | 1 1 . . . 2 2 1 Engine 3 | 1 . . . . 1 1 . Core 4 | . 1 . . . 1 1 1 Reactor . | . . . . . . . . Propulsion 15 | 2 . . 1 . 4 6 2 Treads 5 | . . . . . 4 1 . Leg 10 | 2 . . 1 . . 5 2 Wheel . | . . . . . . . . Hover . | . . . . . . . . Flight . | . . . . . . . . Utility 22 | 1 3 . 3 . 7 4 4 Device 5 | . 1 . . . 3 . 1 Storage 2 | 1 1 . . . . . . Processor 1 | . . . . . . . 1 Hackware 2 | . . . 1 . 1 . . Protection 12 | . 1 . 2 . 3 4 2 Artifact . | . . . . . . . . Weapon 13 | 2 2 . 2 . 4 2 1 Energy Gun 1 | . . . 1 . . . . Energy Cannon 3 | . 2 . 1 . . . . Ballistic Gun 2 | 2 . . . . . . . Ballistic Cannon 5 | . . . . . 3 2 . Launcher 1 | . . . . . 1 . . Special Weapon . | . . . . . . . . Impact Weapon . | . . . . . . . . Slashing Weapon . | . . . . . . . . Piercing Weapon 1 | . . . . . . . 1 Special Melee Weapon . | . . . . . . . . Unidentified Prototypes 2 | . . . 2 . . . . Parts Lost 21 | . . . . . 3 9 9 Power 3 | . . . . . 1 1 1 Propulsion 7 | . . . . . . 3 4 Utility 7 | . . . . . 2 2 3 Weapon 4 | . . . . . . 3 1 Highest Loss Streak 8 | . . . . . 1 8 8 To Critical Strikes . | . . . . . . . . Average Backups 13 | 1 7 12 14 15 14 14 13 Power 1 | . 1 2 2 2 1 . . Propulsion 1 | . . 1 . . . 2 . Utility 5 | . 1 2 5 6 6 6 6 Weapon 5 | . 4 7 6 7 5 4 5 Tool/Special . | . . . . . . . . Unused Backups 27 | . . . 6 . 10 . 11 Power 3 | . . . . . 2 . 1 Propulsion . | . . . . . . . . Utility 6 | . . . 1 . 1 . 4 Weapon 18 | . . . 5 . 7 . 6 Tool/Special . | . . . . . . . . Average Slot Usage (%) 98 | . 99 100 98 100 97 99 97 Engine 4 | . 12 . . . 4 6 . Core 6 | . 1 14 11 11 4 2 6 Treads 6 | . . . . . 27 3 4 Leg 26 | . 28 28 33 33 6 32 31 Device 2 | . 8 . . . 8 . 2 Storage 10 | . 14 14 11 11 9 9 6 Hackware 6 | . . . 7 11 8 9 7 Protection 13 | . 5 14 13 11 8 17 14 Energy Gun 1 | . . . 4 11 1 . . Energy Cannon 10 | . 25 28 17 11 4 . . Ballistic Cannon 9 | . . . . . 12 17 14 Peak Build Rating 44 | 6 10 10 22 22 39 39 44 Average Rating 25 | 5 7 10 17 22 34 34 40 On Entrance 18 | . 6 10 10 22 22 39 35 Avg Prop Armor Cover (%) 5 | . . . . . . 4 7 Naked Turns . | . . . . . . . . Heaviest Build 61 | 11 34 34 39 34 41 57 61 Greatest Support 80 | 20 20 20 30 30 80 80 68 Greatest Overweight (x) 2 | 1 1 1 1 1 1 2 1 Average Overweight (x) . | . . 1 1 1 . . . Largest Inventory Capacity 15 | 8 15 15 15 15 15 15 15 Average Capacity 14 | 7 13 15 15 15 15 15 14 Most Carried 15 | 2 11 14 15 15 15 15 15 Average Carried 13 | 1 8 12 14 15 14 14 13 Final Capacity 15 | 8 15 15 15 15 15 15 5 Final Carried 15 | 2 10 14 15 15 15 15 5 Class Distribution -------------------- 98% | Mutant Dominant Class ---------------- Mutant | -10/Materials Mutant | -10/Mines Mutant | -9/Materials Mutant | -9/Mines Mutant | -8/Materials Mutant | -8/Garrison Mutant | -7/Factory Resources | -11 -10 -10 -9 -9 -8 -8 -7 ----------- Run | Yrd Mat Min Mat Min Mat Gar Fac Matter Collected 2519 | 232 135 79 132 10 692 884 355 Remotely . | . . . . . . . . Salvage Created 2428 | . 204 87 131 . 1060 723 223 Parts 124 | . 9 6 3 . 50 44 12 Haulers Intercepted 4 | . . . 1 . 3 . . Recyclers Shooed 5 | . . . . . 4 . 1 Parts Field Recycled . | . . . . . . . . Retrieved Matter . | . . . . . . . . Parts Self-Destructed . | . . . . . . . . Prevented . | . . . . . . . . Parts Restored . | . . . . . . . . Kills | -11 -10 -10 -9 -9 -8 -8 -7 ------- Run | Yrd Mat Min Mat Min Mat Gar Fac Combat Hostiles Destroyed 74 | . 5 5 1 . 27 29 7 Melee 1 | . . . . . 1 . . Guns 3 | . 1 . . . 2 . . Cannons 61 | . 4 5 1 . 21 23 7 AOE 8 | . . . . . 2 6 . Classes Destroyed 13 | . 1 1 2 . 4 3 2 Builder 1 | . . . . . 1 . . Hauler 4 | . . . 1 . 3 . . Recycler 2 | . . . . . 1 . 1 Operator 2 | . . . 1 . 1 . . Watcher 2 | . . . . . . 1 1 Swarmer 21 | . . 5 . . 6 7 3 Grunt 31 | . 5 . 1 . 14 9 2 Brawler 1 | . . . . . . . 1 Duelist 1 | . . . . . . 1 . Sentry 17 | . . . . . 6 11 . Hunter 1 | . . . . . 1 . . Programmer 1 | . . . . . . . 1 Behemoth 1 | . . . . . . 1 . Best Kill Streak 13 | . 2 3 1 . 5 13 6 Combat Bots Only 13 | . 2 3 1 . 5 13 5 Max Kills in Single Turn 2 | . 1 1 1 . 2 2 1 Gunslinging . | . . . . . . . . Exploded 2 | . . . . . 1 2 . Melee 1 | . . . . . 1 . . Uniques/NPCs Destroyed . | . . . . . . . . Combat | -11 -10 -10 -9 -9 -8 -8 -7 -------- Run | Yrd Mat Min Mat Min Mat Gar Fac Hostile Shots Fired 507 | . 22 29 8 4 165 186 93 Missed 127 | . 7 3 4 1 51 44 17 Hits 380 | . 15 26 4 3 114 142 76 Melee 11 | . . . . . . 2 9 Projectile 369 | . 15 26 4 3 114 140 67 Critical Strikes 19 | . . . . . 5 9 5 Damage Taken 5466 | . 200 215 45 49 1517 2093 1347 Core 628 | . 56 43 14 49 143 137 186 Absorbed by Shields . | . . . . . . . . Redirected to Shielding 227 | . . . . . 227 . . Regen/Repaired (Parts) 255 | . . . . . 255 . . Core Remaining (%) 73 | 100 . 60 . 84 . 49 . Volleys Fired 234 | . 16 11 7 2 87 79 32 Largest 2 | . 2 2 2 2 2 2 2 Hottest 124 | . 120 120 120 124 124 80 80 Shots Fired 445 | . 32 22 14 4 170 139 64 Gun 19 | . 6 . . 2 11 . . Cannon 419 | . 26 22 14 2 157 134 64 Launcher 7 | . . . . . 2 5 . Special . | . . . . . . . . Kinetic 305 | . 6 . . . 101 134 64 Thermal 133 | . 26 22 14 4 67 . . Explosive 7 | . . . . . 2 5 . Electromagnetic . | . . . . . . . . Robot Hit Streak 22 | . 6 5 5 2 22 14 6 Robot Miss Streak 5 | . 3 4 2 2 3 5 3 Penetration Max . | . . . . . . . . Secondary Targets . | . . . . . . . . Shots Hit Robots 265 | . 17 8 8 2 115 76 39 Core Hits 123 | . 8 5 4 . 49 42 15 Critical Kills 1 | . . . . . 1 . . Critical Parts Destroyed . | . . . . . . . . Critical Strikes 14 | . . . . . 8 5 1 Burn 3 | . . . . . 3 . . Meltdown 1 | . . . . . 1 . . Blast 10 | . . . . . 4 5 1 Melee Attacks 5 | . . . . . . . 5 Impact . | . . . . . . . . Slashing . | . . . . . . . . Piercing 5 | . . . . . . . 5 Sneak Attacks . | . . . . . . . . Combat Hostiles . | . . . . . . . . Follow-up Attacks . | . . . . . . . . Damage Inflicted 7188 | 2 358 201 154 38 2899 2481 1055 Guns 236 | . 34 . . 18 184 . . Cannons 6178 | . 302 178 144 20 2443 2088 1003 Explosions 625 | . . . . . 232 393 . Melee 49 | . . . . . . . 49 Ramming 100 | 2 22 23 10 . 40 . 3 Kinetic 4688 | . 34 . . . 1563 2088 1003 Thermal 1726 | . 302 178 144 38 1064 . . Explosive 625 | . . . . . 232 393 . Electromagnetic . | . . . . . . . . Impact . | . . . . . . . . Slashing . | . . . . . . . . Piercing 49 | . . . . . . . 49 Highest Corruption 13 | . . . . . . . 13 Average Corruption 2 | . . . . . . . 2 Corruption Purged . | . . . . . . . . Corruption Blocked . | . . . . . . . . Effects 4 | . . . . . . . 4 Message Errors 1 | . . . . . . . 1 Matter Fused 1 | . . . . . . . 1 Heat Flow Errors 1 | . . . . . . . 1 Data Loss (minor) 1 | . . . . . . . 1 Overload Shots . | . . . . . . . . Overflow Damage 68 | . . . . . 30 16 22 Projectiles 68 | . . . . . 30 16 22 Explosions . | . . . . . . . . Melee . | . . . . . . . . Knockbacks 44 | . . . . . 20 14 10 Impact 2 | . . . . . 2 . . Kinetic 40 | . . . . . 18 12 10 Secondary 2 | . . . . . . 2 . Self-Inflicted Damage 74 | . . . . . . 74 . Shots 2 | . . . . . . 2 . Rammed 10 | . . . . . 10 . . Targets Rammed 27 | 1 6 6 1 . 12 . 1 Kicked 16 | 1 6 6 1 . 1 . 1 Crushed 1 | . . . . . 1 . . Highest Temperature 523 | . 240 324 419 90 228 523 273 Average Temperature 120 | . 88 145 168 46 78 133 98 Received Heat Transfer 2553 | . 114 . 27 9 765 1287 351 Effects 24 | . . . 4 . 1 18 1 Shutdowns 4 | . . . 2 . . 2 . Energy Bleed 5 | . . . . . 1 3 1 Interference 1 | . . . . . . 1 . Matter Decay 4 | . . . 2 . . 2 . Short Circuit 2 | . . . . . . 2 . Damage (minor) 3 | . . . . . . 3 . Damage (major) 5 | . . . . . . 5 . Siege Activations . | . . . . . . . . Martial Activations . | . . . . . . . . Shielding Activations . | . . . . . . . . Robots Disrupted . | . . . . . . . . Combat Hostiles . | . . . . . . . . Robots Corrupted . | . . . . . . . . Combat Hostiles . | . . . . . . . . Parts Fried . | . . . . . . . . Impact Corruptions 1 | . . . . . . 1 . Robots Melted 2 | . . . . . 2 . . Combat Hostiles 1 | . . . . . 1 . . Parts Melted 9 | . 2 . . . 7 . . Heat Transferred 3589 | . 629 370 296 74 2220 . . Parts Sabotaged . | . . . . . . . . Parts Stolen . | . . . . . . . . Parts Stripped . | . . . . . . . . Power Chain Reactions . | . . . . . . . . Alert | -11 -10 -10 -9 -9 -8 -8 -7 ------- Run | Yrd Mat Min Mat Min Mat Gar Fac Maximum Alert Level 5 | . . . . . 1 5 3 Low Security (%) 49 | 100 100 100 100 100 31 4 . Level 1 12 | . . . . . 68 1 . Level 2 15 | . . . . . . 37 37 Level 3 15 | . . . . . . 31 62 Level 4 6 | . . . . . . 19 . Level 5 1 | . . . . . . 5 . High Security . | . . . . . . . . Max Security . | . . . . . . . . Peak Influence 1652 | . 43 118 99 25 294 1652 867 Initial 867 | . . . . 13 . 178 867 Average 381 | . 6 16 57 1 199 890 710 Influence Increases 3245 | . 127 196 154 45 842 1584 297 Destroy 0b10 Robot/C 1700 | . 100 120 80 40 560 620 180 Destroy 0b10 Robot/NC 55 | . . . 10 . 30 5 10 Destroy Leader 240 | . 20 20 12 . 126 30 32 Allied During Kill 51 | . . 11 15 5 5 12 3 Successful Hack 29 | . 6 . 7 . 4 12 . Disable Machine 135 | . . 45 30 . 15 . 45 Anti-Garrison Action 650 | . . . . . . 650 . Destroy Structure 175 | . 1 . . . 42 120 12 Partial Spotted 15 | . . . . . . . 15 Lose Combat Pursuer 195 | . . . . . 60 135 . Influence Decreases 2659 | . 124 199 120 79 568 206 1363 Entered New Map 905 | . . 3 . 21 . 96 785 Time Decay 1294 | . 124 196 120 38 498 . 318 Lost Part 210 | . . . . . 30 90 90 Lost Ally 100 | . . . . 20 40 20 20 Purge Threat 150 | . . . . . . . 150 Squads Dispatched 6 | . . . . . 2 . 4 Investigation . | . . . . . . . . Extermination 2 | . . . . . . . 2 Reinforcement 2 | . . . . . 2 . . Assault 1 | . . . . . . . 1 Garrison 1 | . . . . . . . 1 Intercept . | . . . . . . . . Searches Triggered . | . . . . . . . . Construction Impeded 1 | . . . . . 1 . . Haulers Reinforced . | . . . . . . . . Active Scanning Responses . | . . . . . . . . Cargo Convoy Interrupts . | . . . . . . . . Stealth | -11 -10 -10 -9 -9 -8 -8 -7 --------- Run | Yrd Mat Min Mat Min Mat Gar Fac Distress Signals 5 | . . . 1 . 4 . . Communications Jammed . | . . . . . . . . Distress Signals . | . . . . . . . . Times Spotted 124 | . 8 6 5 2 48 37 18 Peak Tracking Total 10 | . 2 3 2 2 5 10 6 Tactical Retreats 9 | . . . . . 3 6 . Traps | -11 -10 -10 -9 -9 -8 -8 -7 ------- Run | Yrd Mat Min Mat Min Mat Gar Fac Traps Triggered 9 | . . . . . . 9 . Indirectly . | . . . . . . . . Trap Hack Attempts . | . . . . . . . . Triggered . | . . . . . . . . Disarmed . | . . . . . . . . Reprogrammed . | . . . . . . . . Reused . | . . . . . . . . Traps Extracted . | . . . . . . . . Installed . | . . . . . . . . Triggered . | . . . . . . . . Machines | -11 -10 -10 -9 -9 -8 -8 -7 ---------- Run | Yrd Mat Min Mat Min Mat Gar Fac Machines Disabled 9 | . . 3 2 . 1 . 3 Max in Single Turn 2 | . . 2 2 . 1 . 1 Machines Repaired . | . . . . . . . . Machines Dismantled . | . . . . . . . . Machines Sabotaged . | . . . . . . . . Overloaded Fab Kills . | . . . . . . . . Hacking | -11 -10 -10 -9 -9 -8 -8 -7 --------- Run | Yrd Mat Min Mat Min Mat Gar Fac Machines Accessed 15 | . 5 . 1 . 2 4 3 Terminals 12 | . 5 . 1 . . 4 2 Fabricators . | . . . . . . . . Repair Stations 1 | . . . . . 1 . . Recycling Units . | . . . . . . . . Scanalyzers . | . . . . . . . . Garrison Access 2 | . . . . . 1 . 1 Total Hacks 33 | . 10 . 4 . 5 8 6 Successful 14 | . 1 . 4 . 3 4 2 Failed 19 | . 9 . . . 2 4 4 Catastrophic 3 | . 1 . . . . 1 1 Database Lockouts . | . . . . . . . . Manual 9 | . 7 . . . . 1 1 Terminals 27 | . 10 . 4 . . 8 5 Fabricators . | . . . . . . . . Repair Stations 2 | . . . . . 2 . . Recycling Units . | . . . . . . . . Scanalyzers . | . . . . . . . . Garrison Access 4 | . . . . . 3 . 1 Terminal Hacks 11 | . 1 . 4 . . 4 2 Robot Analysis 1 | . 1 . . . . . . Open Door 1 | . . . . . . 1 . Emergency Access Points 2 | . . . 1 . . 1 . Alert Level 1 | . . . . . . . 1 Unreport Threat 1 | . . . . . . . 1 Surveillance Status 1 | . . . 1 . . . . Hauler Manifests 1 | . . . 1 . . . . Zone Layout 1 | . . . 1 . . . . Garrison Registry 1 | . . . . . . 1 . Security Stations 1 | . . . . . . 1 . Fabricator Hacks . | . . . . . . . . Repair Station Hacks 2 | . . . . . 2 . . Scan Component 1 | . . . . . 1 . . Repair 1 | . . . . . 1 . . Recycling Unit Hacks . | . . . . . . . . Scanalyzer . | . . . . . . . . Garrison Access Hacks 1 | . . . . . 1 . . Unlock Access 1 | . . . . . 1 . . Unauthorized Hacks . | . . . . . . . . Terminals . | . . . . . . . . Fabricators . | . . . . . . . . Repair Stations . | . . . . . . . . Recycling Units . | . . . . . . . . Scanalyzers . | . . . . . . . . Garrison Access . | . . . . . . . . Data Cores Recovered 2 | . . . 1 . 1 . . Used 1 | . . . 1 . . . . Hacking Detections 13 | . 4 . 1 . 1 4 3 Full Trace Events 1 | . . . . . . 1 . Feedback Events . | . . . . . . . . Feedback Blocked . | . . . . . . . . Robot Schematics Acquired . | . . . . . . . . Robots Built . | . . . . . . . . Authchips . | . . . . . . . . Time . | . . . . . . . . Total Robot Build Rating . | . . . . . . . . Part Schematics Acquired . | . . . . . . . . Parts Built . | . . . . . . . . Authchips . | . . . . . . . . Time . | . . . . . . . . Total Part Build Rating . | . . . . . . . . Part Studies Acquired . | . . . . . . . . Parts Repaired 1 | . . . . . 1 . . Time 38 | . . . . . 38 . . Parts Recycled . | . . . . . . . . Recycled Matter . | . . . . . . . . Retrieved Matter . | . . . . . . . . Retrieved Components . | . . . . . . . . Parts Scanalyzed . | . . . . . . . . Part Schematics Acquired . | . . . . . . . . Parts Damaged . | . . . . . . . . Bothacking | -11 -10 -10 -9 -9 -8 -8 -7 ------------ Run | Yrd Mat Min Mat Min Mat Gar Fac Used RIF Installer . | . . . . . . . . Robots Hacked . | . . . . . . . . Non-combat . | . . . . . . . . Combat . | . . . . . . . . Robot Hacks Applied . | . . . . . . . . Relay Couplers Released . | . . . . . . . . Fabnet Peak Effective % . | . . . . . . . . Robots Rewired . | . . . . . . . . Allies Hacked . | . . . . . . . . Hacks Repelled . | . . . . . . . . Allies | -11 -10 -10 -9 -9 -8 -8 -7 -------- Run | Yrd Mat Min Mat Min Mat Gar Fac Total Allies 5 | . . 3 . . . 2 . Largest Group 3 | . . 3 3 3 2 2 1 Highest-Rated Group 70 | . . 40 40 40 24 70 31 Highest-Rated Ally 39 | . . 16 16 16 16 39 31 Initial Warlord ECA Mod 1 | . . . . . . . 1 Total Orders . | . . . . . . . . Ally Attacks 94 | . . 12 21 7 8 39 7 Total Damage 1202 | . . 96 215 80 68 639 104 Kills 11 | . . 1 3 2 1 2 2 Allies Corrupted . | . . . . . . . . Allies Melted . | . . . . . . . . Intel | -11 -10 -10 -9 -9 -8 -8 -7 ------- Run | Yrd Mat Min Mat Min Mat Gar Fac Active Infowar (turns) . | . . . . . . . . Robot Analysis Total 1 | . 1 . . . . . . Derelict Logs Recovered 3 | . . 2 . 1 . . . Drone Launches . | . . . . . . . . Drone Recoveries . | . . . . . . . . Exploration | -11 -10 -10 -9 -9 -8 -8 -7 ------------- Run | Yrd Mat Min Mat Min Mat Gar Fac Turns Passed 8524 | 111 861 1557 284 782 1524 2690 715 Spaces Moved 4132 | 87 452 795 127 409 642 1271 349 Core 13 | 13 . . . . . . . Treads 587 | . . . . . 512 75 . Legs 3532 | 74 452 795 127 409 130 1196 349 Wheels . | . . . . . . . . Hover . | . . . . . . . . Flight . | . . . . . . . . Fastest Speed 50 | 50 120 190 190 190 170 120 120 Average Speed 181 | 114 174 190 190 190 174 189 163 Slowest Speed 260 | 120 190 190 190 190 250 260 190 Overloaded Moves . | . . . . . . . . Propulsion Burnouts . | . . . . . . . . Robots Hopped . | . . . . . . . . Potential Cave-ins . | . . . . . . . . Cave-ins Triggered . | . . . . . . . . Exploration Rate (%) 51 | 4 53 99 14 97 52 84 10 Regions Visited 7 Branch Regions 2 Pre-discovered Areas 2 | . . 2 . . . . . Known Exits Taken 2 | . . . 1 . 1 . . Unknown Exits Taken 4 | 1 1 1 . 1 . . . Scrap Searched 3 | . . 1 . 2 . . . Spaces Dug 14 | . . . . . 12 . 2 Terrain Destroyed 65 | . . . . . 37 16 12 Melee . | . . . . . . . . Projectile 29 | . . . . . 17 . 12 AOE 36 | . . . . . 20 16 . Terrain Rammed . | . . . . . . . . Walls Destroyed . | . . . . . . . . Machines Disabled . | . . . . . . . . Actions | -11 -10 -10 -9 -9 -8 -8 -7 --------- Run | Yrd Mat Min Mat Min Mat Gar Fac Total 4667 | 95 487 815 157 410 873 1411 419 Wait 111 | . . . . . 81 19 11 Move 4124 | 87 451 794 126 408 641 1268 349 Hop . | . . . . . . . . Pick Up 48 | 2 7 4 9 . 15 6 5 Fast Attach 19 | 6 1 . 2 . 3 3 4 Attach 14 | . . . 1 . 4 7 2 Detach . | . . . . . . . . Swap 37 | . 5 . 3 . 13 11 5 Drop 34 | . 1 . 8 . 17 3 5 Fire 234 | . 16 11 7 2 87 79 32 Melee 5 | . . . . . . . 5 Ram . | . . . . . . . . Kick 15 | . 6 6 1 . 1 . 1 Crush 11 | . . . . . 11 . . Escape Stasis 15 | . . . . . . 15 . Rewire . | . . . . . . . . Trap . | . . . . . . . . Miscellaneous . | . . . . . . . . Route ------- -11/Scrapyard -10/Materials (discovered 2 exits: *Mat / [*Min]) -10/Mines (discovered 3 exits: *Mat x2 / [*Exi]) -9/Materials (discovered 2 exits: *Min x2) -9/Mines (discovered 2 exits: *Mat x2) -8/Materials -8/Garrison (discovered 3 exits: *Fac x3) -7/Factory (discovered 1 exit: [*Fac]) History --------- Turn | Location | Event 15 | -11/Scrapyard | Discovered new exit (range 16) 112 | -11/Scrapyard | Entered Materials 312 | -10/Materials | Build established: Mutant 564 | -10/Materials | Discovered new exit (range 15) 950 | -10/Materials | Discovered new exit (range 9) 973 | -10/Materials | Entered Mines 1029 | -10/Mines | Discovered new exit (range 10) 1036 | -10/Mines | Learned location of Storage (-9) 1139 | -10/Mines | Assisted by bots powering up and referring to "LRC-V3" 1314 | -10/Mines | Received a Rocket Launcher from a helpful Derelict 1550 | -10/Mines | A weapon hastily lodged in a ceiling crevice suddenly fell to the ground 1626 | -10/Mines | Discovered new exit (range 10) 1712 | -10/Mines | Learned location of Mines (-9) 2424 | -10/Mines | Deemed a non-threat by the Exiles lab entrance 2426 | -10/Mines | Discovered new exit (range 5) 2530 | -10/Mines | Entered Materials 2530 | -9/Materials | Accompanied by 3 allies 2530 | -9/Materials | Evolved 2 slots: Propulsion x1, Utility x1 2531 | -9/Materials | Identified exit to Mines 2814 | -9/Materials | Entered Mines 2814 | -9/Mines | Accompanied by 3 allies 2862 | -9/Mines | Discovered new exit (range 11) 3083 | -9/Mines | Joined a pair of Derelicts in attacking an 0b10 outpost 3320 | -9/Mines | Discovered new exit (range 7) 3392 | -9/Mines | Learned Materials stockpile data 3596 | -9/Mines | Entered Materials 3596 | -8/Materials | Accompanied by 2 allies 3596 | -8/Materials | Evolved 2 slots: Propulsion x1, Utility x1 4919 | -8/Materials | Repaired Arm. Treads 5062 | -8/Materials | Identified exit to Garrison 5120 | -8/Materials | Entered Garrison 5242 | -8/Garrison | Triggered checkpoint 5329 | -8/Garrison | Destroyed 13 combat bots 5337 | -8/Garrison | Lost 8 parts (1p3n2u2w) 5472 | -8/Garrison | Triggered checkpoint 5518 | -8/Garrison | Discovered new exit (range 10) 5802 | -8/Garrison | Triggered checkpoint 5882 | -8/Garrison | Discovered new exit (range 11) 5976 | -8/Garrison | Triggered checkpoint 6238 | -8/Garrison | Triggered checkpoint 6367 | -8/Garrison | Discovered new exit (range 3) 6685 | -8/Garrison | Discovered new exit (range 75) 6685 | -8/Garrison | Discovered new exit (range 15) 6685 | -8/Garrison | Discovered new exit (range 50) 7007 | -8/Garrison | Rescued a captive Derelict 7008 | -8/Garrison | Rescued a captive Derelict 7162 | -8/Garrison | Spotted B-75 Beast 7177 | -8/Garrison | Core integrity fell below 50% 7179 | -8/Garrison | Destroyed B-75 Beast 7254 | -8/Garrison | Triggered checkpoint 7261 | -8/Garrison | Learned Factory security intel 7588 | -8/Garrison | Attempted to access garrison exit controls, blocked by remote lockdown 7714 | -8/Garrison | Triggered checkpoint 7810 | -8/Garrison | Entered Factory 7810 | -7/Factory | Accompanied by 1 ally 7810 | -7/Factory | Evolved 2 slots: Propulsion x1, Utility x1 8153 | -7/Factory | Discovered new exit (range 12) 8182 | -7/Factory | Garrison activated, responded to threat 8210 | -7/Factory | First assault squad dispatched 8516 | -7/Factory | System corruption reached 10% 8525 | -7/Factory | Self-destructed Last Messages --------------- 08498_ Acquired Hrd. Medium Armor Plating. 08498_ K-01 Serf collects debris. 08500_ Kicked K-01 Serf. 08501_ P-60 Hacker knocked back. 08503_ K-01 Serf collects debris. 08504_ P-60 Hacker knocked back. 08505_ Critical hit (Smash). 08506_ K-01 Serf collects debris. 08508_ Adv. Assault Cannon destroyed. 08509_ U-05 Engineer builds a Wall. 08509_ Acquired Spear. 08509_ U-05 Engineer builds a Wall. 08510_ K-01 Serf collects debris. 08515_ Carbon-fiber Leg destroyed. 08515_ System corrupted by crushing effect (+4). 08515_ Knocked back. 08518_ P-60 Hacker resets K-01 Serf, system corruption cleaned. 08524_ Knocked back. 08525_ System corrupted: Component data lost. Map ----- +----------------------------------------------------+ | ??????????????? ?????????????????????????????????? | | ??????????????? ?????????????????????????????????? | | ??????????????? ????????? ?????????????????????? | | ??????????????? ????????? ????????????????????? | | ??????????????? ????????? ????????????????????? | | ??????????????? ????????? [ ????????????????????? | | ??????#######?# #???????# ????????????????????? | | ?????? #?# #???????# ????????????????????? | | ???# """ #?# #???????# ???????????????????? | | ???# """ #?# #???????# ???????????????????? | | ???# """ #?# #???????# ??????????????????? | | ???# #?# #???????# """"??????????????????? | | ???# """ #?# #???????# """"?? #??????????????? | | ???# """ #?# #???????# """" #??????????????? | | ???# """ #?# #???????# """" ####???????????? | | ???# ### ####????# """" +???????????? | | ???#####+#### ####### """" #???????????? | | ??????# ###% T """" # ??????? | | ??????# " "%"" % + ??????? | | ??????# ### ! % *% r%% #???????????? | | ??????## ##?# ##+######/# % #???????????? | | ???????# #??## ##]=! g # % * #???????????? | | ???????# #???# ##!"*] k # %[ #???????????? | | ????####+##### ## ""! igpb#??? = #???????????? | | ????# # ## """% " #???? #???????????? | | ????# # ## """ "@" #?????? ??????????? | | ????# # ## """ """ #??????? ??????????? | | ????# # ## #????????? ??????????? | | ????# """" +^ ## = #????????????????????? | | ????# """" # ############????????????????????? | | ????# """" # #???????????????????????????????? | | ????# """" # #???????????????????????????????? | | ????# # #???????????????????????????????? | | ?????######### ##########??????????????????????? | | ?????? ?# # #??????????????????????? | | ?????? """ ?# # """ #??????????????????????? | | ????? """ # # """ #??????????????????????? | | ????# """ # # """ #??????????????????????? | | ????# + + #??????????????????????? | | ????# """ # # """ #??????????????????????? | | ????? """ # #[ """ #??????????????????????? | | ?????? """ ?# # """ !#??????????????????????? | | ?????? ?# # #??????????????????????? | | ?????######??# %##########???????????????????? ?? | | ?###########?# % ##############???????????????? ?? | | # ?# #[ %% [ #???????????????? ?? | | # # # !! !=%% #???????????????? ?? | | # # # ]!% " " #???????????????? ?? | | # + + =""G"" #???????????????? ?? | | # # # ] #???????????????? ?? | +----------------------------------------------------+ Best States ------------- Heat Dissipation 50 Energy Generation 18 Energy Capacity 160 Matter Stores 300 Matter Capacity 300 Sight Range 16 Terrain Scan Density 10 Armor Coverage 450 Weapon Shielding 66 Evasion (%) 55 Targeting Accuracy 8 Recoil Reduction 4 Offensive Hacking 10 Item Schematics ----------------- None Robot Schematics ------------------ None Fabricated ------------ Nothing Repaired ---------- Arm. Treads | 15% | -8/Materials Studied --------- None Alien Tech Used ----------------- None Achievements -------------- Let Me Out Of Here Challenges ------------ None Game ------ Seed VoltaicTeslaHoverbase Manual? 0 Play Time 00:54:37 Cumulative 52.3 hours Start 2026.07.07 @ 13:16:11 End 2026.07.08 @ 18:35:49 Sessions 7 Manual Loads 0 Difficulty Rogue Special Mode None Game No. 94 Rogue 94 Adventurer 0 Explorer 0 Win Type - Total 1 Types 1/0/0/0/0/0/0/0/0/0 Lore% 27 Gallery% 35 Achievement% 27 Wizard Run 0 Options --------- Layout 1 ASCII 0 Keyboard 0 Movement Arrows Keybinds 0 Fullscreen 1 Font 32/SmallcapsGlow Map View 50x35 Zoom Use 0% Tactical HUD 1 Map Filters NONE Filters NONE Steam 1 RUN: 30af0202-0f8a-45b8-86ac-25b4bce96efd